bitfinex-derivatives/quotes_BNBF0:USTF0_20250908
["timestamp","ask_amount","ask_price","bid_price","bid_amount"]
[1757355367741,2.54709829,877.25,875.48,1.02050214]
[1757355368746,2.54709829,877.26,875.48,1.02050214]
[1757355369247,2.54709829,877.25,875.48,1.02050214]
[1757355369846,2.54709829,877.25,875.51,1.02050214]
[1757355370446,2.54709829,877.13,875.52,1.02050214]
[1757355370843,2.54709829,877.1,875.52,1.02050214]
[1757355371346,2.54709829,877.11,875.52,1.02050214]
[1757355372446,0.63186912,877.1,875.32,1.53294179]
[1757355372649,0.63186912,877.09,875.32,1.53294179]
[1757355372949,2.54709829,877.06,875.32,1.53294179]
[1757355373149,0.63186912,877.05,875.33,1.53294179]
[1757355373350,3.17896741,877.04,875.33,1.53294179]
[1757355373649,0.63186912,877.03,875.32,1.53294179]
[1757355373849,0.63186912,877.02,875.31,1.53294179]
[1757355374048,0.63186912,877.01,875.31,1.53294179]
[1757355374251,0.63186912,877.0,875.29,1.53294179]
[1757355374547,0.63186912,876.99,875.29,1.53294179]
[1757355374746,0.63186912,876.98,875.29,1.53294179]
[1757355375046,0.63186912,876.97,875.29,1.53294179]
[1757355375246,0.63186912,876.96,875.26,1.53294179]
[1757355375446,0.63186912,876.95,875.26,1.53294179]
[1757355375647,0.63186912,876.94,875.26,1.53294179]
[1757355375847,0.63186912,876.93,875.26,1.53294179]
[1757355376150,0.63186912,876.92,875.26,1.53294179]
[1757355376446,0.63186912,876.91,875.26,1.53294179]
[1757355376646,0.63186912,876.9,875.26,1.53294179]
[1757355376846,0.63186912,876.89,875.26,1.53294179]
[1757355377151,0.63186912,876.88,875.2,1.53294179]
[1757355377350,0.63186912,876.87,875.2,1.53294179]
[1757355377547,0.63186912,876.86,875.2,1.53294179]
[1757355377750,0.63186912,876.85,875.2,1.53294179]
[1757355377946,0.63186912,876.84,875.2,1.53294179]
[1757355378150,0.63186912,876.83,875.2,1.53294179]
[1757355378350,1.52387477,876.55,875.2,1.53294179]
[1757355378546,0.63186912,876.54,875.21,1.53294179]
[1757355378751,0.63186912,876.53,875.21,1.53294179]
[1757355378951,0.63186912,876.52,875.21,1.53294179]
[1757355379250,0.63186912,876.51,875.19,1.53294179]
[1757355379452,0.63186912,876.5,875.19,1.53294179]
[1757355379654,0.63186912,876.49,875.19,1.53294179]
[1757355379851,0.63186912,876.48,875.19,1.53294179]
[1757355380049,0.63186912,876.47,875.19,1.53294179]
[1757355380353,0.63186912,876.46,875.2,1.53294179]
[1757355380554,0.63186912,876.45,875.2,1.53294179]
[1757355380750,0.63186912,876.44,875.2,1.53294179]
[1757355381049,0.63186912,876.43,875.2,1.53294179]
[1757355381252,0.63186912,876.42,875.2,1.53294179]
[1757355381451,2.54709829,877.3,875.2,1.53294179]
[1757355381452,0.63186912,876.41,875.2,1.53294179]
[1757355381649,0.33876167,876.4,875.2,1.53294179]
[1757355381854,2.54709829,877.31,875.2,1.53294179]
[1757355382351,2.54709829,877.31,875.21,1.53294179]
[1757355384057,2.54709829,877.3,875.21,1.53294179]
[1757355384251,2.54709829,877.3,875.22,1.53294179]
[1757355384453,2.54709829,877.28,875.22,1.53294179]
[1757355384956,2.54709829,877.28,874.15,3.57223632]
[1757355384957,2.54709829,877.28,875.2,1.53294179]
[1757355385357,2.54709829,877.44,875.3,1.53294179]
[1757355386056,2.54709829,877.44,875.1,1.53294179]
[1757355386358,3.57143795,877.81,875.1,1.53294179]
[1757355386558,2.54709829,878.06,875.1,1.53294179]
[1757355386858,2.54709829,878.05,875.1,1.53294179]
[1757355387154,2.54709829,878.05,873.51,3.57223632]
[1757355387155,1.01659755,876.74,875.11,1.53294179]
[1757355389156,1.01659755,876.73,875.11,1.53294179]
[1757355390560,1.01659755,876.73,875.12,1.53294179]
[1757355390761,1.01659755,876.74,875.12,1.53294179]
[1757355391155,1.01659755,876.73,875.13,1.53294179]
[1757355391360,1.01659755,876.73,875.12,1.53294179]
[1757355392561,1.01659755,876.73,874.09,2.55490298]
[1757355392562,1.01659755,876.79,875.18,1.53294179]
[1757355393264,1.01659755,876.8,875.18,1.53294179]
[1757355393563,0.62772152,876.79,875.18,1.53294179]
[1757355393864,0.62772152,876.78,875.18,1.53294179]
[1757355394062,0.62772152,876.77,875.18,1.53294179]
[1757355394261,2.54709829,878.1,875.17,1.53294179]
[1757355394262,0.62772152,876.76,875.17,1.53294179]
[1757355394464,0.62772152,876.75,875.17,1.53294179]
[1757355394660,0.62772152,876.74,875.17,1.53294179]
[1757355394860,0.62772152,876.73,875.17,1.53294179]
[1757355395064,0.62772152,876.72,875.17,1.53294179]
[1757355395266,0.62772152,876.71,875.17,1.53294179]
[1757355395565,0.62772152,876.7,875.17,1.53294179]
[1757355395766,0.62772152,876.69,875.17,1.53294179]
[1757355396066,2.54709829,878.09,875.36,1.53294179]
[1757355396067,1.01659755,876.63,875.36,1.53294179]
[1757355396368,0.62772152,876.62,875.36,1.53294179]
[1757355396565,0.62772152,876.61,875.36,1.53294179]
[1757355396860,0.62772152,876.6,875.36,1.53294179]
[1757355397062,0.62772152,876.59,875.36,1.53294179]
[1757355397365,0.62772152,876.58,875.36,1.53294179]
[1757355397566,0.62772152,876.57,875.36,1.53294179]
[1757355397861,0.62772152,876.56,875.36,1.53294179]
[1757355398061,0.62772152,876.55,875.36,1.53294179]
[1757355398262,0.16303991,876.54,875.36,1.53294179]
[1757355398465,0.16303991,876.53,875.43,1.53294179]
[1757355398666,1.01659755,876.56,875.43,1.53294179]
[1757355399168,1.01659755,876.58,875.45,1.53294179]
[1757355399460,1.01659755,876.58,875.44,1.53294179]
[1757355399965,1.01659755,876.59,875.44,1.53294179]
[1757355400262,1.01659755,876.59,875.43,1.53294179]
[1757355400462,1.01659755,876.59,875.44,1.53294179]
[1757355400666,1.01659755,876.62,875.39,1.53294179]
[1757355401165,1.01659755,876.62,874.64,2.55490298]
[1757355401166,1.01659755,876.63,875.38,1.53294179]
[1757355401363,1.01659755,876.64,875.38,1.53294179]
[1757355402266,1.01659755,876.62,875.4,1.53294179]
[1757355402667,1.01659755,876.63,875.39,1.53294179]
[1757355403367,1.01659755,876.63,875.38,1.53294179]
[1757355404269,1.01659755,876.62,875.38,1.53294179]
[1757355404570,1.01659755,876.62,875.37,1.53294179]
[1757355405371,1.01659755,876.62,875.38,1.53294179]
[1757355407469,1.01659755,876.63,875.38,1.53294179]
[1757355407668,1.01659755,876.67,875.32,1.53294179]
[1757355408373,1.01659755,876.67,875.33,1.53294179]
[1757355410274,0.6255258,876.66,875.33,1.53294179]
[1757355410574,1.64212335,876.65,875.35,1.53294179]
[1757355410772,0.6255258,876.64,875.35,1.53294179]
[1757355411074,0.6255258,876.63,875.36,1.53294179]
[1757355411271,1.01659755,876.64,875.36,1.53294179]
[1757355411272,0.6255258,876.62,875.36,1.53294179]
[1757355411471,0.6255258,876.61,875.36,1.53294179]
[1757355411669,0.6255258,876.6,875.36,1.53294179]
[1757355411871,0.6255258,876.59,875.36,1.53294179]
[1757355412072,0.6255258,876.58,875.36,1.53294179]
[1757355412271,0.6255258,876.57,875.36,1.53294179]
[1757355412575,0.55938897,876.56,875.37,1.53294179]
[1757355412772,1.01659755,876.63,875.37,1.53294179]
[1757355417086,1.01659755,876.64,875.37,1.53294179]
[1757355417584,1.01659755,876.57,875.44,1.53294179]
[1757355417886,0.55821747,876.57,875.44,1.53294179]
[1757355418586,0.34099827,876.57,875.44,1.53294179]
[1757355418786,1.52493453,876.76,875.46,1.53294179]
[1757355419985,1.52493453,876.75,875.46,1.53294179]
[1757355421889,1.52493453,876.74,875.46,1.53294179]
[1757355422686,1.52493453,876.73,875.47,1.53294179]
[1757355423290,1.52493453,876.71,875.49,1.53294179]
[1757355423486,1.52493453,876.72,875.48,1.53294179]
[1757355424587,0.46448847,876.71,875.48,1.53294179]
[1757355424791,1.52493453,876.72,875.48,1.53294179]
[1757355425090,1.52493453,876.72,875.3,0.19824259]
[1757355425091,1.52493453,876.72,875.49,1.53294179]
[1757355425790,0.85996611,876.7,875.51,1.53294179]
[1757355425987,3.57143795,877.67,875.68,1.02226117]
[1757355425988,2.54709829,877.3,875.68,1.02226117]
[1757355426490,2.54709829,877.32,875.68,1.02226117]
[1757355426889,2.54709829,877.29,875.68,1.02226117]
[1757355427290,2.54709829,877.29,875.69,1.02226117]
[1757355427490,3.57143795,877.59,875.69,1.02226117]
[1757355427491,2.54709829,877.27,875.69,1.02226117]
[1757355427891,2.54709829,877.25,875.69,1.02226117]
[1757355428187,2.54709829,877.25,875.3,0.19824259]
[1757355428488,2.54709829,877.79,875.3,0.19824259]
[1757355429992,2.54709829,877.8,875.3,0.19824259]
[1757355430590,2.54709829,877.75,875.3,0.19824259]
[1757355431490,2.54709829,877.73,875.3,0.19824259]
[1757355433193,2.54709829,877.74,875.3,0.19824259]
[1757355434195,2.54709829,877.75,875.3,0.19824259]
[1757355434698,2.54709829,877.74,875.3,0.19824259]
[1757355435700,2.54709829,877.56,875.32,1.02226117]
[1757355437002,2.54709829,877.56,875.31,1.02226117]
[1757355437502,2.54709829,877.59,875.31,1.02226117]
[1757355437999,2.54709829,877.59,875.3,0.19824259]
[1757355438000,2.54709829,877.59,875.37,1.02226117]
[1757355438499,2.54709829,877.36,875.37,1.02226117]
[1757355439101,2.54709829,877.36,875.38,1.02226117]
[1757355439406,2.54709829,877.31,875.38,1.02226117]
[1757355439604,2.54709829,877.31,875.39,1.02226117]
[1757355440003,2.54709829,877.26,875.39,1.02226117]
[1757355441206,2.54709829,877.26,875.3,0.19824259]
[1757355441502,3.57143795,877.59,875.3,0.19824259]
[1757355441706,2.54709829,877.76,875.3,0.19824259]
[1757355442006,2.54709829,877.75,875.3,0.19824259]
[1757355442504,2.54709829,877.76,875.3,0.19824259]
[1757355444609,2.54709829,877.79,875.3,0.19824259]
[1757355445104,2.54709829,877.78,875.3,0.19824259]
[1757355445607,2.54709829,877.63,875.3,0.19824259]
[1757355445805,1.52205586,876.72,875.3,0.19824259]
[1757355446509,2.54709829,877.64,875.3,0.19824259]
[1757355446510,1.52205586,876.73,875.3,0.19824259]
[1757355446806,1.52205586,876.72,875.3,0.19824259]
[1757355448207,2.54709829,877.63,875.3,0.19824259]
[1757355448208,1.52205586,876.73,875.3,0.19824259]
[1757355448408,1.52205586,876.74,875.3,0.19824259]
[1757355448808,1.01456885,876.51,875.3,0.19824259]
[1757355449110,1.01456885,876.52,875.3,0.19824259]
[1757355449606,1.01456885,876.53,875.3,0.19824259]
[1757355450310,1.01456885,876.52,875.3,0.19824259]
[1757355451011,1.01456885,876.45,875.3,0.19824259]
[1757355451413,1.01456885,876.42,875.3,0.19824259]
[1757355453912,1.01456885,876.38,875.3,0.19824259]
[1757355454817,1.01456885,876.41,875.3,0.19824259]
[1757355455315,1.01456885,876.55,875.32,1.02226117]
[1757355456613,1.01456885,876.56,875.31,1.02226117]
[1757355456813,1.01456885,876.64,875.37,1.02226117]
[1757355457017,1.01456885,876.64,875.44,1.02226117]
[1757355457212,1.01456885,876.65,875.44,1.02226117]
[1757355457412,1.01456885,876.64,875.44,1.02226117]
[1757355457914,1.01456885,876.65,875.45,1.02226117]
[1757355458314,1.01456885,876.73,875.51,1.02226117]
[1757355461814,1.01456885,876.75,875.49,1.02226117]
[1757355462313,1.01456885,876.85,875.41,1.02226117]
[1757355462916,1.01456885,877.23,875.3,0.19824259]
[1757355463116,1.01456885,877.22,875.3,0.19824259]
[1757355464320,0.61516004,877.21,875.3,0.19824259]
[1757355464621,0.61516004,877.2,875.3,0.19824259]
[1757355464815,0.61516004,877.19,875.3,0.19824259]
[1757355465016,0.61516004,877.18,875.3,0.19824259]
[1757355465218,0.61516004,877.17,875.3,0.19824259]
[1757355465417,0.61516004,877.16,875.3,0.19824259]
[1757355465615,0.61516004,877.15,875.3,0.19824259]
[1757355465915,0.61516004,877.14,875.3,0.19824259]
[1757355466116,0.61516004,877.13,875.3,0.19824259]
[1757355466416,0.61516004,877.12,875.3,0.19824259]
[1757355466613,2.54709829,879.15,875.3,0.19824259]
[1757355466614,1.01456885,877.09,875.3,0.19824259]
[1757355466818,0.61516004,877.08,875.3,0.19824259]
[1757355467017,0.61516004,877.07,875.3,0.19824259]
[1757355467216,0.61516004,877.06,875.3,0.19824259]
[1757355467417,0.61516004,877.05,875.3,0.19824259]
[1757355467620,0.61516004,877.04,875.3,0.19824259]
[1757355467820,0.61516004,877.03,875.3,0.19824259]
[1757355468021,0.61516004,877.02,875.3,0.19824259]
[1757355468216,0.61516004,877.01,875.3,0.19824259]
[1757355468421,0.61516004,877.0,875.3,0.19824259]
[1757355468721,0.61516004,876.99,875.3,0.19824259]
[1757355468922,0.61516004,876.98,875.3,0.19824259]
[1757355469121,0.61516004,876.97,875.3,0.19824259]
[1757355469319,0.61516004,876.96,875.3,0.19824259]
[1757355469524,0.61516004,876.95,875.3,0.19824259]
[1757355469721,0.61516004,876.94,875.3,0.19824259]
[1757355469923,0.61516004,876.93,875.3,0.19824259]
[1757355470118,0.61516004,876.92,875.3,0.19824259]
[1757355470318,0.61516004,876.91,875.3,0.19824259]
[1757355470618,0.61516004,876.9,875.3,0.19824259]
[1757355470819,0.61516004,876.89,875.3,0.19824259]
[1757355471023,0.61516004,876.88,875.3,0.19824259]
[1757355471224,0.61516004,876.87,875.3,0.19824259]
[1757355471424,0.61516004,876.86,875.3,0.19824259]
[1757355471622,0.61516004,876.85,875.3,0.19824259]
[1757355471820,0.61516004,876.84,875.3,0.19824259]
[1757355472019,3.57143795,879.5,875.3,0.19824259]
[1757355472020,0.61516004,876.83,875.3,0.19824259]
[1757355472225,0.61516004,876.82,875.3,0.19824259]
[1757355472422,0.61516004,876.81,875.3,0.19824259]
[1757355472627,0.61516004,876.8,875.3,0.19824259]
[1757355472825,1.01456885,876.72,875.3,0.19824259]
[1757355473022,0.61516004,876.71,875.3,0.19824259]
[1757355473222,0.61516004,876.7,875.3,0.19824259]
[1757355473428,2.54709829,877.87,875.3,0.19824259]
[1757355473429,0.61516004,876.69,875.3,0.19824259]
[1757355473625,0.61516004,876.68,875.3,0.19824259]
[1757355473925,0.61516004,876.67,875.3,0.19824259]
[1757355474129,0.61516004,876.66,875.3,0.19824259]
[1757355474330,0.61516004,876.65,875.3,0.19824259]
[1757355474630,0.61516004,876.64,875.3,0.19824259]
[1757355474924,0.61516004,876.63,875.3,0.19824259]
[1757355475129,0.61516004,876.62,875.3,0.19824259]
[1757355475330,0.61516004,876.61,875.3,0.19824259]
[1757355475533,0.61516004,876.6,875.3,0.19824259]
[1757355475731,0.61516004,876.59,875.3,0.19824259]
[1757355476031,0.61516004,876.58,875.3,0.19824259]
[1757355476232,0.61516004,876.57,875.3,0.19824259]
[1757355476528,0.61516004,876.56,875.3,0.19824259]
[1757355476732,0.61516004,876.55,875.3,0.19824259]
[1757355476933,0.61516004,876.54,875.3,0.19824259]
[1757355477237,0.61516004,876.53,875.3,1.73118438]
[1757355477528,0.61516004,876.52,875.3,1.73118438]
[1757355477728,0.61516004,876.51,875.3,1.73118438]
[1757355477932,0.55364404,876.5,875.3,1.73118438]
[1757355478130,1.01456885,876.61,875.3,1.73118438]
[1757355478433,1.01456885,876.61,875.31,1.53294179]
[1757355481930,1.01456885,876.6,875.32,1.53294179]
[1757355482336,1.01456885,876.69,875.3,0.19824259]
[1757355482536,1.01456885,876.71,875.3,0.19824259]
[1757355483332,1.01456885,876.7,875.3,0.19824259]
[1757355484233,1.01456885,876.68,875.3,0.19824259]
[1757355484439,2.54709829,877.74,875.3,0.19824259]
[1757355484440,1.01456885,876.69,875.3,0.19824259]
[1757355486345,1.01456885,876.71,875.3,0.19824259]
[1757355487441,1.01456885,876.72,875.3,0.19824259]
[1757355489847,0.61512323,876.71,875.3,0.19824259]
[1757355490042,0.61512323,876.7,875.3,0.19824259]
[1757355490242,0.61512323,876.69,875.3,0.19824259]
[1757355490445,0.61512323,876.68,875.3,0.19824259]
[1757355490647,0.61512323,876.67,875.3,0.19824259]
[1757355490848,0.61512323,876.66,875.3,0.19824259]
[1757355491043,0.61512323,876.65,875.3,0.19824259]
[1757355491248,0.61512323,876.64,875.3,0.19824259]
[1757355491448,0.61512323,876.63,875.3,0.19824259]
[1757355491648,0.61512323,876.62,875.3,0.19824259]
[1757355491850,0.61512323,876.61,875.3,0.19824259]
[1757355492149,0.61512323,876.6,875.3,0.19824259]
[1757355492351,0.61512323,876.59,875.3,0.19824259]
[1757355492550,0.61512323,876.58,875.3,0.19824259]
[1757355492749,0.61512323,876.57,875.3,0.19824259]
[1757355492949,0.61512323,876.56,875.3,0.19824259]
[1757355493249,0.61512323,876.55,875.3,0.19824259]
[1757355493548,0.61512323,876.54,875.3,0.19824259]
[1757355493749,0.61512323,876.53,875.3,0.19824259]
[1757355493949,0.61512323,876.52,875.3,0.19824259]
[1757355494149,0.61512323,876.51,875.3,0.19824259]
[1757355494451,1.01456885,876.7,875.48,1.02129014]
[1757355495350,2.54709829,877.72,875.3,0.19824259]
[1757355495351,1.01456885,876.69,875.49,1.02129014]
[1757355496246,1.01456885,876.66,875.51,1.02129014]
[1757355496546,1.01456885,876.68,875.5,1.02129014]
[1757355497350,1.01456885,876.67,875.5,1.02129014]
[1757355498251,1.01456885,876.66,875.51,1.02129014]
[1757355498647,1.01456885,876.67,875.5,1.02129014]
[1757355499246,1.01456885,876.67,875.51,1.02129014]
[1757355499851,1.01456885,876.67,875.5,1.02129014]
[1757355500048,1.01456885,876.67,875.31,1.53294179]
[1757355500049,1.01456885,876.67,875.51,1.02129014]
[1757355500653,1.01456885,876.78,875.42,1.02129014]
[1757355501250,1.01456885,876.77,875.42,1.02129014]
[1757355501451,1.01456885,876.78,875.42,1.02129014]
[1757355502252,1.01456885,876.76,875.43,1.02129014]
[1757355503350,1.01456885,876.76,875.44,1.02129014]
[1757355503553,1.01456885,876.75,875.44,1.02129014]
[1757355504150,1.01456885,876.74,875.44,1.02129014]
[1757355504556,1.01456885,876.75,875.44,1.02129014]
[1757355506055,1.01456885,876.74,875.44,1.02129014]
[1757355506459,1.01456885,876.74,875.45,1.02129014]
[1757355506955,1.01456885,876.76,875.43,1.02129014]
[1757355507259,1.01456885,876.75,875.44,1.02129014]
[1757355508355,1.52205586,876.98,875.43,1.02129014]
[1757355508356,1.01456885,876.74,875.43,1.02129014]
[1757355508555,1.01456885,876.74,875.44,1.02129014]
[1757355509254,1.01456885,876.73,875.44,1.02129014]
[1757355509858,1.01456885,876.73,875.41,1.02129014]
[1757355510360,1.01456885,876.73,875.42,1.02129014]
[1757355510557,1.01456885,876.66,875.47,1.02129014]
[1757355511254,1.01456885,876.66,875.46,1.02129014]
[1757355512259,1.01456885,876.66,875.47,1.02129014]
[1757355513158,1.01456885,876.65,875.47,1.02129014]
[1757355513461,1.01456885,876.65,875.48,1.02129014]
[1757355514160,1.01456885,876.65,875.49,1.02129014]
[1757355514461,1.01456885,876.64,875.49,1.02129014]
[1757355515062,1.01456885,876.63,875.5,1.02129014]
[1757355516258,1.01456885,876.62,875.51,1.02129014]
[1757355516863,1.01456885,876.58,875.54,1.02129014]
[1757355517262,1.28377619,876.78,875.54,1.02129014]
[1757355517558,2.54709829,877.58,875.57,1.02129014]
[1757355517964,2.54709829,877.62,875.57,1.02129014]
[1757355518662,2.54709829,877.62,875.56,1.02129014]
[1757355518864,2.54709829,877.6,875.56,1.02129014]
[1757355519661,2.54709829,877.6,875.59,1.02129014]
[1757355520061,2.54709829,877.49,875.59,1.02129014]
[1757355520360,2.54709829,877.49,875.62,1.02129014]
[1757355520565,2.54709829,877.38,875.62,1.02129014]
[1757355521166,2.54709829,877.38,875.65,1.02129014]
[1757355521566,2.54709829,877.49,875.59,1.02129014]
[1757355522163,2.54709829,877.51,875.58,1.02129014]
[1757355523968,2.54709829,877.51,875.54,1.02129014]
[1757355524167,2.54709829,877.66,875.54,1.02129014]
[1757355524667,2.54709829,877.67,875.55,1.02129014]
[1757355525164,2.54709829,877.66,875.54,1.02129014]
[1757355526163,2.54709829,877.64,875.55,1.02129014]
[1757355528864,2.54709829,877.65,875.55,1.02129014]
[1757355529968,2.54709829,877.64,875.55,1.02129014]
[1757355530167,2.54709829,877.64,875.56,1.02129014]
[1757355530567,2.54709829,877.66,875.55,1.02129014]
[1757355530966,2.54709829,877.67,875.55,1.02129014]
[1757355531565,2.54709829,877.61,875.56,1.02129014]
[1757355532069,2.54709829,877.59,875.57,1.02129014]
[1757355532370,2.54709829,877.59,875.53,1.02129014]
[1757355532567,2.54709829,877.72,875.53,1.02129014]
[1757355533869,2.54709829,877.72,875.56,1.02129014]
[1757355534072,2.54709829,877.63,875.56,1.02129014]
[1757355535368,2.54709829,877.63,875.4,1.02129014]
[1757355535771,2.54709829,877.47,875.4,1.02129014]
[1757355536272,2.54709829,877.46,875.4,1.02129014]
[1757355537273,2.54709829,877.46,875.39,1.02129014]
[1757355537473,1.52805257,876.65,875.39,1.02129014]
[1757355537674,0.79426119,876.65,875.39,1.02129014]
[1757355537874,2.54709829,877.47,875.4,1.02129014]
[1757355538074,2.54709829,877.47,875.42,1.02129014]
[1757355538274,2.54709829,877.48,875.42,1.02129014]
[1757355538474,2.54709829,877.48,875.4,1.02129014]
[1757355538771,2.54709829,877.57,875.4,1.02129014]
[1757355540872,2.54709829,877.54,875.41,1.02129014]
[1757355542078,2.54709829,877.54,875.42,1.02129014]
[1757355542473,2.54709829,877.48,875.42,1.02129014]
[1757355542972,2.54709829,877.49,875.42,1.02129014]
[1757355543172,2.54709829,877.49,875.4,1.02129014]
[1757355543372,2.54709829,877.56,875.4,1.02129014]
[1757355545177,2.54709829,877.56,875.39,1.02129014]
[1757355545374,2.54709829,877.59,875.44,1.02129014]
[1757355546073,2.54709829,877.91,875.3,0.19824259]
[1757355546473,2.54709829,877.86,875.3,0.19824259]
[1757355547478,1.01829992,876.59,875.3,0.19824259]
[1757355547676,1.01829992,876.57,875.3,0.19824259]
[1757355548180,1.01829992,876.58,875.3,0.19824259]
[1757355551181,1.01829992,876.59,875.3,0.19824259]
[1757355551681,1.01829992,876.58,875.3,0.19824259]
[1757355553183,1.01829992,876.57,875.3,0.19824259]
[1757355555085,1.01829992,876.56,875.3,0.19824259]
[1757355555283,1.01829992,876.57,875.3,0.19824259]
[1757355555478,1.01829992,876.66,875.36,1.02129014]
[1757355555879,1.01829992,876.51,875.48,1.02129014]
[1757355556079,1.01829992,876.5,875.49,1.02129014]
[1757355556580,1.01829992,876.5,875.5,1.02129014]
[1757355556581,0.89248738,876.5,875.5,1.02129014]
[1757355558084,1.52698021,876.6,875.54,1.02129014]
[1757355558684,1.52698021,876.65,875.52,1.02129014]
[1757355559081,1.52698021,876.66,875.51,1.02129014]
[1757355560086,1.52698021,876.71,875.48,1.02129014]
[1757355560488,1.52698021,876.69,875.5,1.02129014]
[1757355560783,1.52698021,876.77,875.45,1.02129014]
[1757355561588,1.52698021,876.79,875.44,1.02129014]
[1757355561887,1.52698021,877.0,875.3,0.19824259]
[1757355562086,1.52698021,876.87,875.3,0.19824259]
[1757355562288,1.52698021,876.51,875.3,0.19824259]
[1757355562983,1.52698021,876.52,875.3,0.19824259]
[1757355563183,1.52698021,876.55,875.3,0.19824259]
[1757355563382,1.52698021,876.43,875.3,0.19824259]
[1757355563888,1.52698021,876.42,875.3,0.19824259]
[1757355564085,1.52698021,876.45,875.3,0.19824259]
[1757355565086,1.52698021,876.47,875.3,0.19824259]
[1757355565488,1.52698021,876.49,875.3,0.19824259]
[1757355566290,1.52698021,876.51,875.3,0.19824259]
[1757355566887,1.52698021,876.49,875.3,0.19824259]
[1757355567186,1.52698021,876.51,875.3,0.19824259]
[1757355568188,1.52698021,876.52,875.3,0.19824259]
[1757355568686,1.52698021,876.54,875.3,0.19824259]
[1757355569092,1.52698021,876.55,875.3,0.19824259]
[1757355569694,1.52698021,876.56,875.3,0.19824259]
[1757355570094,1.52698021,876.57,875.3,0.19824259]
[1757355571199,1.52698021,876.58,875.3,0.19824259]
[1757355572198,1.52698021,876.57,875.3,0.19824259]
[1757355572501,1.52698021,876.56,875.3,0.19824259]
[1757355572898,1.52698021,876.55,875.3,0.19824259]
[1757355573199,1.52698021,876.52,875.3,0.19824259]
[1757355575503,1.52698021,876.43,875.3,0.19824259]
[1757355575700,1.52698021,876.42,875.3,0.19824259]
[1757355576105,1.52698021,876.43,875.3,0.19824259]
[1757355576601,1.52698021,876.42,875.3,0.19824259]
[1757355578206,1.52698021,876.69,875.3,0.19824259]
[1757355578407,1.52698021,876.7,875.3,0.19824259]
[1757355580706,1.52698021,876.78,875.3,0.19824259]
[1757355586504,1.01240906,876.53,875.3,0.19824259]
[1757355587011,1.01240906,876.29,875.3,0.19824259]
[1757355590208,1.01240906,876.28,875.3,0.19824259]
[1757355590410,1.01240906,876.27,875.3,0.19824259]
[1757355591105,1.01240906,876.26,875.3,0.19824259]
[1757355591808,1.01240906,876.25,875.3,0.19824259]
[1757355592411,1.01240906,876.34,875.3,0.19824259]
[1757355593913,1.52698021,876.52,875.3,0.19824259]
[1757355593914,1.01240906,876.33,875.3,0.19824259]
[1757355594411,2.54709829,877.25,875.3,0.19824259]
[1757355594412,1.01240906,876.39,875.3,0.19824259]
[1757355595513,1.01240906,876.46,875.3,0.19824259]
[1757355596110,1.01240906,876.45,875.3,0.19824259]
[1757355597816,1.01240906,876.47,875.3,0.19824259]
[1757355598012,1.01240906,876.46,875.3,0.19824259]
[1757355598217,1.01240906,876.45,875.3,0.19824259]
[1757355599717,1.01240906,876.44,875.3,0.19824259]
[1757355600314,1.01240906,876.39,875.3,0.19824259]
[1757355602340,1.01240906,876.36,875.3,0.19824259]
[1757355602522,1.01240906,876.36,874.85,1.02129014]
[1757355602718,1.01240906,876.36,875.4,0.19834032]
[1757355603120,1.01240906,876.36,874.85,1.02129014]
[1757355603318,1.01240906,876.36,874.86,1.02129014]
[1757355603521,1.01240906,876.36,874.85,1.02129014]
[1757355604324,1.01240906,876.31,875.22,0.19834032]
[1757355605321,1.01240906,876.3,875.22,0.19834032]
[1757355605524,1.01240906,876.29,875.22,0.19834032]
[1757355606524,1.01240906,876.27,875.22,0.19834032]
[1757355607619,1.01240906,876.24,875.22,0.19834032]
[1757355609121,1.01240906,876.22,875.22,0.19834032]
[1757355610126,1.01240906,876.21,875.22,0.19834032]
[1757355611922,1.01240906,876.2,875.22,0.19834032]
[1757355612128,0.88824501,876.2,875.22,0.19834032]
[1757355613225,1.52698021,876.35,875.22,0.19834032]
[1757355613428,1.52698021,876.34,875.22,0.19834032]
[1757355613924,1.52698021,876.35,875.22,0.19834032]
[1757355614123,1.52698021,876.34,875.22,0.19834032]
[1757355615028,1.52698021,876.35,875.22,0.19834032]
[1757355615328,1.52698021,876.34,875.22,0.19834032]
[1757355615526,1.52698021,876.37,875.22,0.19834032]
[1757355616128,1.52698021,876.36,875.22,0.19834032]
[1757355617228,1.52698021,876.34,875.22,0.19834032]
[1757355618127,1.52698021,876.33,875.22,0.19834032]
[1757355618727,1.34387977,876.3,875.22,0.19834032]
[1757355619228,2.54709829,876.91,875.22,0.19834032]
[1757355619632,2.54709829,876.88,875.22,0.19834032]
[1757355620230,2.54709829,876.91,875.22,0.19834032]
[1757355620732,2.54709829,876.89,875.22,0.19834032]
[1757355621633,2.54709829,876.87,875.22,0.19834032]
[1757355622239,2.54709829,876.86,875.22,0.19834032]
[1757355622737,2.54709829,876.9,875.22,0.19834032]
[1757355624234,2.54709829,876.92,875.22,0.19834032]
[1757355624737,2.54709829,876.93,875.22,0.19834032]
[1757355625134,2.54709829,876.9,875.22,0.19834032]
[1757355625836,2.54709829,876.79,875.22,0.19834032]
[1757355626934,2.54709829,876.78,875.22,0.19834032]
[1757355628438,2.54709829,876.8,875.22,0.19834032]
[1757355629338,2.54709829,876.84,875.22,0.19834032]
[1757355630042,2.54709829,876.83,875.22,0.19834032]